[Event "*** Titled Tuesday Blitz"]
[Site "Chess.com"]
[Date "2021.04.27"]
[Round "1"]
[White "Bad_left_hook"]
[Black "levallem"]
[Result "1-0"]
[WhiteElo "2583"]
[BlackElo "2251"]
[TimeControl "180+1"]
[EndTime "10:02:42 PDT"]
[Termination "Bad_left_hook won by resignation"]

1. d4 {[%clk 0:02:54.9]} 1... Nf6 {[%clk 0:02:58.3]} 2. c4 {[%clk 0:02:54.9]}
2... g6 {[%clk 0:02:56.2]} 3. Nc3 {[%clk 0:02:54.6]} 3... Bg7 {[%clk 0:02:56.3]}
4. e4 {[%clk 0:02:54.4]} 4... d6 {[%clk 0:02:56.3]} 5. Nf3 {[%clk 0:02:54.6]}
5... Nbd7 {[%clk 0:02:56.9]} 6. Be2 {[%clk 0:02:54.2]} 6... O-O {[%clk
0:02:56.7]} 7. O-O {[%clk 0:02:54.7]} 7... e5 {[%clk 0:02:57.2]} 8. Re1 {[%clk
0:02:49.6]} 8... Re8 {[%clk 0:02:55.8]} 9. Bf1 {[%clk 0:02:49.2]} 9... exd4
{[%clk 0:02:50.5]} 10. Nxd4 {[%clk 0:02:48.7]} 10... Nc5 {[%clk 0:02:51.4]} 11.
f3 {[%clk 0:02:46.6]} 11... Ne6 {[%clk 0:02:48.9]} 12. Be3 {[%clk 0:02:45.3]}
12... Nxd4 {[%clk 0:02:40.7]} 13. Bxd4 {[%clk 0:02:45.1]} 13... Nh5 {[%clk
0:02:39.9]} 14. Bxg7 {[%clk 0:02:42.9]} 14... Nxg7 {[%clk 0:02:39.6]} 15. Qd2
{[%clk 0:02:38.3]} 15... Be6 {[%clk 0:02:36]} 16. Rad1 {[%clk 0:02:37.3]} 16...
a5 {[%clk 0:02:35.1]} 17. Qd4 {[%clk 0:02:34.7]} 17... Qe7 {[%clk 0:02:31.9]}
18. b3 {[%clk 0:02:32]} 18... Rad8 {[%clk 0:02:31.3]} 19. f4 {[%clk 0:02:12.6]}
19... Bg4 {[%clk 0:02:25.8]} 20. Nd5 {[%clk 0:02:12.4]} 20... Qd7 {[%clk
0:02:24]} 21. Nf6+ {[%clk 0:02:11.9]} 1-0

[Event "*** Titled Tuesday Blitz"]
[Site "Chess.com"]
[Date "2021.04.27"]
[Round "1"]
[White "Zq1"]
[Black "MikeSailer"]
[Result "1-0"]
[WhiteElo "2517"]
[BlackElo "2161"]
[TimeControl "180+1"]
[EndTime "10:02:56 PDT"]
[Termination "Zq1 won by resignation"]

1. e4 {[%clk 0:02:58.9]} 1... d5 {[%clk 0:02:59.6]} 2. exd5 {[%clk 0:02:58.2]}
2... Qxd5 {[%clk 0:02:59.6]} 3. Nc3 {[%clk 0:02:58.3]} 3... Qd6 {[%clk
0:03:00.2]} 4. d4 {[%clk 0:02:58.3]} 4... Nf6 {[%clk 0:03:00.7]} 5. Nf3 {[%clk
0:02:55.3]} 5... c6 {[%clk 0:03:01.1]} 6. h3 {[%clk 0:02:54.6]} 6... Bf5 {[%clk
0:03:01.5]} 7. Be3 {[%clk 0:02:53.7]} 7... e6 {[%clk 0:03:02]} 8. Qd2 {[%clk
0:02:53.6]} 8... Be7 {[%clk 0:02:58.6]} 9. a3 {[%clk 0:02:51.9]} 9... Nd5 {[%clk
0:02:43.6]} 10. Nxd5 {[%clk 0:02:35.2]} 10... exd5 {[%clk 0:02:31.6]} 11. Be2
{[%clk 0:02:29.6]} 11... Nd7 {[%clk 0:02:30.7]} 12. O-O {[%clk 0:02:26.4]} 12...
O-O {[%clk 0:02:30.3]} 13. Bf4 {[%clk 0:02:26.2]} 13... Qg6 {[%clk 0:02:15.8]}
14. Bg3 {[%clk 0:02:25.5]} 14... Bd6 {[%clk 0:01:59.3]} 15. Nh4 {[%clk
0:02:20.5]} 15... Qf6 {[%clk 0:01:55.7]} 16. Nxf5 {[%clk 0:02:18.9]} 16... Qxf5
{[%clk 0:01:55]} 17. Bxd6 {[%clk 0:02:17.5]} 17... Nf6 {[%clk 0:01:54.7]} 18.
Bd3 {[%clk 0:02:10.1]} 18... Ne4 {[%clk 0:01:50.8]} 19. Bxe4 {[%clk 0:02:09.7]}
19... dxe4 {[%clk 0:01:51.4]} 20. Bxf8 {[%clk 0:02:09.4]} 1-0

[Event "*** Titled Tuesday Blitz"]
[Site "Chess.com"]
[Date "2021.04.27"]
[Round "1"]
[White "debashisdebs"]
[Black "Warre"]
[Result "1-0"]
[WhiteElo "2932"]
[BlackElo "2459"]
[TimeControl "180+1"]
[EndTime "10:03:18 PDT"]
[Termination "debashisdebs won by resignation"]

1. d4 {[%clk 0:03:00.9]} 1... Nf6 {[%clk 0:03:00]} 2. c4 {[%clk 0:03:01.3]} 2...
e6 {[%clk 0:03:00.3]} 3. Nf3 {[%clk 0:03:01.6]} 3... d5 {[%clk 0:03:00.7]} 4.
Nc3 {[%clk 0:03:01.4]} 4... Bb4 {[%clk 0:03:00.3]} 5. cxd5 {[%clk 0:03:00.3]}
5... exd5 {[%clk 0:03:01.2]} 6. Bg5 {[%clk 0:03:00.8]} 6... h6 {[%clk
0:03:01.1]} 7. Bh4 {[%clk 0:03:00.3]} 7... O-O {[%clk 0:03:01.1]} 8. e3 {[%clk
0:03:00.2]} 8... Bf5 {[%clk 0:03:01.4]} 9. Be2 {[%clk 0:02:56.9]} 9... Nbd7
{[%clk 0:03:01]} 10. O-O {[%clk 0:02:54]} 10... c6 {[%clk 0:02:44.3]} 11. Qb3
{[%clk 0:02:52.2]} 11... Qb6 {[%clk 0:02:29.5]} 12. a3 {[%clk 0:02:46.4]} 12...
Bd6 {[%clk 0:02:25.1]} 13. Nd2 {[%clk 0:02:45.8]} 13... Qxb3 {[%clk 0:02:22.9]}
14. Nxb3 {[%clk 0:02:45.5]} 14... Ne4 {[%clk 0:02:23.2]} 15. Nxe4 {[%clk
0:02:43.1]} 15... Bxe4 {[%clk 0:02:24.1]} 16. Bg3 {[%clk 0:02:42.4]} 16... Bxg3
{[%clk 0:02:22.1]} 17. hxg3 {[%clk 0:02:43.3]} 17... Nf6 {[%clk 0:02:16.3]} 18.
Rfc1 {[%clk 0:02:42.4]} 18... Bg6 {[%clk 0:02:00.5]} 19. Na5 {[%clk 0:02:39.3]}
19... Rab8 {[%clk 0:01:58]} 20. b4 {[%clk 0:02:39.7]} 20... a6 {[%clk
0:01:57.9]} 21. a4 {[%clk 0:02:32.5]} 21... Rfc8 {[%clk 0:01:43.3]} 22. Nxb7
{[%clk 0:02:21.7]} 22... Rxb7 {[%clk 0:01:40.7]} 23. Bxa6 {[%clk 0:02:22.2]}
23... Rcb8 {[%clk 0:01:38.6]} 24. Bxb7 {[%clk 0:02:21.8]} 24... Rxb7 {[%clk
0:01:39.5]} 25. Rxc6 {[%clk 0:02:17.7]} 25... Rxb4 {[%clk 0:01:37.5]} 26. a5
{[%clk 0:02:17.5]} 1-0

[Event "*** Titled Tuesday Blitz"]
[Site "Chess.com"]
[Date "2021.04.27"]
[Round "1"]
[White "jens1102"]
[Black "seorobert1971"]
[Result "0-1"]
[WhiteElo "2404"]
[BlackElo "2747"]
[TimeControl "180+1"]
[EndTime "10:03:23 PDT"]
[Termination "seorobert1971 won by resignation"]

1. e4 {[%clk 0:02:58.5]} 1... e6 {[%clk 0:03:00.1]} 2. d4 {[%clk 0:02:58.5]}
2... d5 {[%clk 0:03:01]} 3. Nd2 {[%clk 0:02:57]} 3... Nf6 {[%clk 0:03:00.1]} 4.
e5 {[%clk 0:02:56.9]} 4... Nfd7 {[%clk 0:03:00.4]} 5. Bd3 {[%clk 0:02:57.5]}
5... c5 {[%clk 0:03:00.3]} 6. c3 {[%clk 0:02:57.9]} 6... b6 {[%clk 0:03:00.6]}
7. Ne2 {[%clk 0:02:58.1]} 7... Ba6 {[%clk 0:03:00.1]} 8. Nf3 {[%clk 0:02:58.1]}
8... Be7 {[%clk 0:02:59.4]} 9. O-O {[%clk 0:02:58.1]} 9... Bxd3 {[%clk
0:02:59.2]} 10. Qxd3 {[%clk 0:02:59]} 10... Nc6 {[%clk 0:02:59.8]} 11. a3 {[%clk
0:02:58.1]} 11... O-O {[%clk 0:02:59.2]} 12. b4 {[%clk 0:02:58.2]} 12... Qc7
{[%clk 0:02:58]} 13. Bg5 {[%clk 0:02:52.2]} 13... Qd8 {[%clk 0:02:49.1]} 14.
Bxe7 {[%clk 0:02:44]} 14... Qxe7 {[%clk 0:02:49.1]} 15. Ng3 {[%clk 0:02:38.7]}
15... Rac8 {[%clk 0:02:48.7]} 16. h4 {[%clk 0:02:29.3]} 16... Rc7 {[%clk
0:02:46.9]} 17. Ng5 {[%clk 0:02:29.3]} 17... g6 {[%clk 0:02:35]} 18. f4 {[%clk
0:02:29.6]} 18... f6 {[%clk 0:02:27.4]} 19. Nf3 {[%clk 0:02:24.5]} 19... cxd4
{[%clk 0:02:21.3]} 20. cxd4 {[%clk 0:02:23.3]} 20... fxe5 {[%clk 0:02:18.7]} 21.
fxe5 {[%clk 0:02:19.9]} 21... Rcc8 {[%clk 0:02:18.7]} 22. Ng5 {[%clk 0:02:15.4]}
22... Rxf1+ {[%clk 0:02:15.8]} 23. Rxf1 {[%clk 0:02:15.1]} 23... Rf8 {[%clk
0:02:15.9]} 24. Rxf8+ {[%clk 0:02:02.6]} 24... Nxf8 {[%clk 0:02:14.1]} 25. Qf3
{[%clk 0:01:58.2]} 25... h6 {[%clk 0:02:09.7]} 26. Nh3 {[%clk 0:01:57.8]} 26...
Qxh4 {[%clk 0:02:09]} 27. Ne2 {[%clk 0:01:44.4]} 27... Nxd4 {[%clk 0:02:06.7]}
0-1

[Event "*** Titled Tuesday Blitz"]
[Site "Chess.com"]
[Date "2021.04.27"]
[Round "1"]
[White "The_filthy"]
[Black "Vanina1989"]
[Result "0-1"]
[WhiteElo "2420"]
[BlackElo "2800"]
[TimeControl "180+1"]
[EndTime "10:03:27 PDT"]
[Termination "Vanina1989 won by resignation"]

1. e4 {[%clk 0:03:00.4]} 1... c6 {[%clk 0:02:59.4]} 2. Nf3 {[%clk 0:02:59.2]}
2... d5 {[%clk 0:02:59.6]} 3. Nc3 {[%clk 0:02:59.8]} 3... dxe4 {[%clk
0:02:57.9]} 4. Nxe4 {[%clk 0:02:59.6]} 4... Nf6 {[%clk 0:02:58.3]} 5. Ng3 {[%clk
0:02:55.8]} 5... Bg4 {[%clk 0:02:57]} 6. Bc4 {[%clk 0:02:54.5]} 6... e6 {[%clk
0:02:56.8]} 7. h3 {[%clk 0:02:50.6]} 7... Bxf3 {[%clk 0:02:55.8]} 8. Qxf3 {[%clk
0:02:50.6]} 8... Bd6 {[%clk 0:02:55.2]} 9. d3 {[%clk 0:02:46.3]} 9... Nbd7
{[%clk 0:02:55.1]} 10. Bd2 {[%clk 0:02:44.7]} 10... Ne5 {[%clk 0:02:54.3]} 11.
Qe2 {[%clk 0:02:44.9]} 11... Nxc4 {[%clk 0:02:54.3]} 12. dxc4 {[%clk 0:02:45.8]}
12... Bxg3 {[%clk 0:02:53.8]} 13. fxg3 {[%clk 0:02:45.6]} 13... Qc7 {[%clk
0:02:38.9]} 14. Qf3 {[%clk 0:02:41.3]} 14... Qe5+ {[%clk 0:02:37.1]} 15. Kf2
{[%clk 0:02:35.8]} 15... Qxb2 {[%clk 0:02:34.2]} 16. Rhc1 {[%clk 0:02:28.9]}
16... Qd4+ {[%clk 0:02:33.9]} 17. Be3 {[%clk 0:02:28.6]} 17... Qxc4 {[%clk
0:02:33.1]} 18. Kg1 {[%clk 0:02:29]} 18... O-O {[%clk 0:02:32]} 19. Rab1 {[%clk
0:02:21]} 19... b6 {[%clk 0:02:31.7]} 20. a3 {[%clk 0:02:15.8]} 20... Rfd8
{[%clk 0:02:29.2]} 21. Rb4 {[%clk 0:02:15.1]} 21... Qd5 {[%clk 0:02:25.6]} 22.
Qe2 {[%clk 0:02:03.3]} 22... Qe5 {[%clk 0:02:24.5]} 23. Qf2 {[%clk 0:01:47.8]}
23... Ne4 {[%clk 0:02:22.5]} 24. Qf3 {[%clk 0:01:39.7]} 24... Nxg3 {[%clk
0:02:18.9]} 25. Rg4 {[%clk 0:01:28.4]} 25... Nf5 {[%clk 0:02:18.6]} 26. Bf4
{[%clk 0:01:27]} 26... Qd5 {[%clk 0:02:18.9]} 27. Qf2 {[%clk 0:01:25.3]} 27...
Qd4 {[%clk 0:02:19.3]} 0-1

[Event "*** Titled Tuesday Blitz"]
[Site "Chess.com"]
[Date "2021.04.27"]
[Round "1"]
[White "Grieve72"]
[Black "aljado"]
[Result "1-0"]
[WhiteElo "2494"]
[BlackElo "2045"]
[TimeControl "180+1"]
[EndTime "10:03:55 PDT"]
[Termination "Grieve72 won by resignation"]

1. e4 {[%clk 0:02:59.2]} 1... c5 {[%clk 0:02:58.6]} 2. Nc3 {[%clk 0:02:57.6]}
2... Nc6 {[%clk 0:02:57.2]} 3. Bb5 {[%clk 0:02:57.7]} 3... g6 {[%clk 0:02:53.8]}
4. Bxc6 {[%clk 0:02:57.3]} 4... dxc6 {[%clk 0:02:50.3]} 5. f4 {[%clk 0:02:55.4]}
5... Bg7 {[%clk 0:02:50.3]} 6. Nf3 {[%clk 0:02:55.2]} 6... Bg4 {[%clk
0:02:47.9]} 7. d3 {[%clk 0:02:52.7]} 7... e6 {[%clk 0:02:45.2]} 8. O-O {[%clk
0:02:50.6]} 8... Ne7 {[%clk 0:02:44.4]} 9. Be3 {[%clk 0:02:46.4]} 9... b6 {[%clk
0:02:42.6]} 10. Qe1 {[%clk 0:02:40.5]} 10... Bxf3 {[%clk 0:02:38.7]} 11. Rxf3
{[%clk 0:02:41.4]} 11... Bd4 {[%clk 0:02:37.9]} 12. f5 {[%clk 0:02:19.3]} 12...
Bxe3+ {[%clk 0:02:36.4]} 13. Qxe3 {[%clk 0:02:19]} 13... exf5 {[%clk 0:02:30.3]}
14. exf5 {[%clk 0:02:18.5]} 14... Qd4 {[%clk 0:02:30.4]} 15. f6 {[%clk
0:02:01.6]} 15... O-O {[%clk 0:02:21.9]} 16. fxe7 {[%clk 0:01:57.5]} 16... Rfe8
{[%clk 0:02:21.3]} 17. Re1 {[%clk 0:01:45.5]} 17... Rxe7 {[%clk 0:02:19.4]} 18.
Ne4 {[%clk 0:01:41.6]} 18... Qxe3+ {[%clk 0:01:52.8]} 19. Rfxe3 {[%clk
0:01:38.4]} 19... Kg7 {[%clk 0:01:53]} 20. Nd2 {[%clk 0:01:33.4]} 20... Rxe3
{[%clk 0:01:50.9]} 21. Rxe3 {[%clk 0:01:34.3]} 21... b5 {[%clk 0:01:45.3]} 22.
Nb3 {[%clk 0:01:31.1]} 22... c4 {[%clk 0:01:43.6]} 23. dxc4 {[%clk 0:01:32]}
23... bxc4 {[%clk 0:01:43.3]} 24. Na5 {[%clk 0:01:32.6]} 1-0

[Event "*** Titled Tuesday Blitz"]
[Site "Chess.com"]
[Date "2021.04.27"]
[Round "1"]
[White "Konavets"]
[Black "JoachimMouhamad"]
[Result "1-0"]
[WhiteElo "2938"]
[BlackElo "2460"]
[TimeControl "180+1"]
[EndTime "10:03:58 PDT"]
[Termination "Konavets won by resignation"]

1. e4 {[%clk 0:03:00.9]} 1... e5 {[%clk 0:02:59.6]} 2. Nf3 {[%clk 0:02:56.8]}
2... Nc6 {[%clk 0:02:59.7]} 3. d4 {[%clk 0:02:55.4]} 3... exd4 {[%clk
0:02:59.3]} 4. Nxd4 {[%clk 0:02:56.3]} 4... Nf6 {[%clk 0:02:59.5]} 5. Nxc6
{[%clk 0:02:54.9]} 5... bxc6 {[%clk 0:03:00.4]} 6. Qe2 {[%clk 0:02:54.9]} 6...
d6 {[%clk 0:02:57.8]} 7. Nc3 {[%clk 0:02:53.7]} 7... Be7 {[%clk 0:02:57.4]} 8.
b3 {[%clk 0:02:54.1]} 8... O-O {[%clk 0:02:56.2]} 9. Bb2 {[%clk 0:02:54.5]} 9...
Re8 {[%clk 0:02:56.2]} 10. O-O-O {[%clk 0:02:53.8]} 10... Bd7 {[%clk 0:02:48.4]}
11. Rg1 {[%clk 0:02:53.3]} 11... a5 {[%clk 0:02:42]} 12. a4 {[%clk 0:02:52.3]}
12... Bf8 {[%clk 0:02:32.4]} 13. g4 {[%clk 0:02:52.1]} 13... Nxe4 {[%clk
0:02:03.9]} 14. Nxe4 {[%clk 0:02:45.3]} 14... d5 {[%clk 0:02:04.4]} 15. Bg2
{[%clk 0:02:43.7]} 15... dxe4 {[%clk 0:01:55.4]} 16. Bxe4 {[%clk 0:02:32]} 16...
Qe7 {[%clk 0:01:52.9]} 17. f3 {[%clk 0:02:24.9]} 17... Rad8 {[%clk 0:01:44.3]}
18. Kb1 {[%clk 0:02:18.5]} 18... c5 {[%clk 0:01:43]} 19. g5 {[%clk 0:02:15.4]}
19... Kh8 {[%clk 0:01:34.5]} 20. Qf2 {[%clk 0:02:12.3]} 20... f5 {[%clk
0:00:58.1]} 21. gxf6 {[%clk 0:02:10.7]} 21... gxf6 {[%clk 0:00:58]} 22. Qh4
{[%clk 0:02:10.9]} 1-0

[Event "*** Titled Tuesday Blitz"]
[Site "Chess.com"]
[Date "2021.04.27"]
[Round "1"]
[White "MVM2008"]
[Black "SF-96"]
[Result "0-1"]
[WhiteElo "2258"]
[BlackElo "2593"]
[TimeControl "180+1"]
[EndTime "10:04:08 PDT"]
[Termination "SF-96 won by checkmate"]

1. e4 {[%clk 0:02:53.8]} 1... e5 {[%clk 0:02:53.3]} 2. f4 {[%clk 0:02:49.5]}
2... exf4 {[%clk 0:02:49.5]} 3. Nf3 {[%clk 0:02:46]} 3... g5 {[%clk 0:02:47.6]}
4. Bc4 {[%clk 0:02:37.4]} 4... g4 {[%clk 0:02:42.9]} 5. Nc3 {[%clk 0:02:22.7]}
5... gxf3 {[%clk 0:02:38.7]} 6. Qxf3 {[%clk 0:02:23.6]} 6... Bc5 {[%clk
0:02:18.9]} 7. Qh5 {[%clk 0:01:55.7]} 7... d5 {[%clk 0:02:06.7]} 8. Qe5+ {[%clk
0:01:44.3]} 8... Kf8 {[%clk 0:01:56.7]} 9. Nxd5 {[%clk 0:01:34.2]} 9... Qh4+
{[%clk 0:01:47.4]} 10. g3 {[%clk 0:01:23.1]} 10... fxg3 {[%clk 0:01:47.2]} 11.
Nxc7 {[%clk 0:00:54.3]} 11... g2+ {[%clk 0:01:40.9]} 12. Ke2 {[%clk 0:00:52.6]}
12... Qf2+ {[%clk 0:01:37.9]} 13. Kd3 {[%clk 0:00:50.4]} 13... Qf3# {[%clk
0:01:38.4]} 0-1

[Event "*** Titled Tuesday Blitz"]
[Site "Chess.com"]
[Date "2021.04.27"]
[Round "1"]
[White "Raud100"]
[Black "Alexsur1981"]
[Result "1-0"]
[WhiteElo "2457"]
[BlackElo "2858"]
[TimeControl "180+1"]
[EndTime "10:04:12 PDT"]
[Termination "Raud100 won by checkmate"]

1. d4 {[%clk 0:03:00.9]} 1... d5 {[%clk 0:02:59.5]} 2. c4 {[%clk 0:02:54.2]}
2... e6 {[%clk 0:02:59.1]} 3. Nc3 {[%clk 0:02:53.7]} 3... c6 {[%clk 0:02:57.7]}
4. Nf3 {[%clk 0:02:51.1]} 4... Nf6 {[%clk 0:02:57.1]} 5. Bg5 {[%clk 0:02:50.3]}
5... dxc4 {[%clk 0:02:56.8]} 6. e4 {[%clk 0:02:50.4]} 6... b5 {[%clk 0:02:57.1]}
7. Be2 {[%clk 0:02:50.7]} 7... h6 {[%clk 0:02:55.1]} 8. Bh4 {[%clk 0:02:50.1]}
8... Bb7 {[%clk 0:02:52.2]} 9. O-O {[%clk 0:02:49.4]} 9... Be7 {[%clk
0:02:48.2]} 10. e5 {[%clk 0:02:48.9]} 10... Nd5 {[%clk 0:02:48.2]} 11. Bxe7
{[%clk 0:02:49.8]} 11... Qxe7 {[%clk 0:02:48.3]} 12. Ne4 {[%clk 0:02:50.3]}
12... O-O {[%clk 0:02:48.9]} 13. a4 {[%clk 0:02:49.7]} 13... a6 {[%clk
0:02:44.9]} 14. Nfd2 {[%clk 0:02:44.6]} 14... Rd8 {[%clk 0:02:41.5]} 15. Ra3
{[%clk 0:02:39.2]} 15... Nd7 {[%clk 0:02:39.3]} 16. Nd6 {[%clk 0:02:35]} 16...
Rab8 {[%clk 0:02:32.5]} 17. N2e4 {[%clk 0:02:34.5]} 17... f5 {[%clk 0:02:23]}
18. Nc5 {[%clk 0:02:33.4]} 18... Bc8 {[%clk 0:02:16.1]} 19. Rg3 {[%clk
0:02:26.7]} 19... Nf8 {[%clk 0:02:15]} 20. Qd2 {[%clk 0:02:23.3]} 20... Kh7
{[%clk 0:02:12.8]} 21. Bh5 {[%clk 0:02:15.2]} 21... Rxd6 {[%clk 0:02:11.6]} 22.
exd6 {[%clk 0:02:15.9]} 22... Qxd6 {[%clk 0:02:12.5]} 23. Re1 {[%clk 0:02:14.7]}
23... Nf4 {[%clk 0:02:09.2]} 24. Bd1 {[%clk 0:01:50.3]} 24... Nd7 {[%clk
0:02:03.6]} 25. Qe3 {[%clk 0:01:39.3]} 25... Nxc5 {[%clk 0:02:00.2]} 26. dxc5
{[%clk 0:01:40.2]} 26... Qc7 {[%clk 0:02:00.7]} 27. Bc2 {[%clk 0:01:31.6]} 27...
bxa4 {[%clk 0:01:51.1]} 28. Qc3 {[%clk 0:01:28.5]} 28... Nd5 {[%clk 0:01:47.4]}
29. Qd4 {[%clk 0:01:26.5]} 29... Qf4 {[%clk 0:01:41.5]} 30. Qxg7# {[%clk
0:01:22.6]} 1-0

[Event "*** Titled Tuesday Blitz"]
[Site "Chess.com"]
[Date "2021.04.27"]
[Round "1"]
[White "andrewtnb"]
[Black "BigAl"]
[Result "0-1"]
[WhiteElo "2223"]
[BlackElo "2557"]
[TimeControl "180+1"]
[EndTime "10:04:29 PDT"]
[Termination "BigAl won by resignation"]

1. d4 {[%clk 0:02:53]} 1... Nf6 {[%clk 0:02:59]} 2. c4 {[%clk 0:02:50.4]} 2...
g6 {[%clk 0:02:58.9]} 3. Nc3 {[%clk 0:02:49.4]} 3... Bg7 {[%clk 0:02:59.4]} 4.
e4 {[%clk 0:02:48.6]} 4... O-O {[%clk 0:03:00]} 5. Nf3 {[%clk 0:02:46.9]} 5...
d6 {[%clk 0:03:00.4]} 6. Be2 {[%clk 0:02:46.5]} 6... Bg4 {[%clk 0:03:00.8]} 7.
Ng1 {[%clk 0:02:42.2]} 7... Bc8 {[%clk 0:03:00.1]} 8. Nf3 {[%clk 0:02:41.9]}
8... Bg4 {[%clk 0:02:59.2]} 9. Ng1 {[%clk 0:02:41.6]} 9... Bxe2 {[%clk
0:02:58.7]} 10. Ngxe2 {[%clk 0:02:41.5]} 10... c5 {[%clk 0:02:58]} 11. d5 {[%clk
0:02:32.8]} 11... b5 {[%clk 0:02:44.7]} 12. cxb5 {[%clk 0:02:29.2]} 12... a6
{[%clk 0:02:45.1]} 13. bxa6 {[%clk 0:02:16.5]} 13... Qa5 {[%clk 0:02:44.2]} 14.
O-O {[%clk 0:02:06.9]} 14... Nbd7 {[%clk 0:02:44.3]} 15. Qc2 {[%clk 0:01:37]}
15... Rfb8 {[%clk 0:02:38.9]} 16. Bd2 {[%clk 0:01:06.1]} 16... Qxa6 {[%clk
0:02:39]} 17. Rfc1 {[%clk 0:00:55.1]} 17... Ne5 {[%clk 0:02:34.6]} 18. Rab1
{[%clk 0:00:50.8]} 18... Nd3 {[%clk 0:02:27]} 19. Rd1 {[%clk 0:00:49.8]} 19...
Nb4 {[%clk 0:02:16.3]} 20. Qc1 {[%clk 0:00:32]} 20... Nd3 {[%clk 0:02:15.7]} 21.
Qc2 {[%clk 0:00:31.5]} 21... Nb4 {[%clk 0:02:15]} 22. Qc1 {[%clk 0:00:31.6]}
22... Nxa2 {[%clk 0:02:15]} 23. Nxa2 {[%clk 0:00:30.5]} 23... Qxa2 {[%clk
0:02:15]} 24. Ra1 {[%clk 0:00:28.5]} 24... Qxa1 {[%clk 0:02:10.6]} 25. Qxa1
{[%clk 0:00:27.6]} 25... Rxa1 {[%clk 0:02:11.2]} 26. Rxa1 {[%clk 0:00:27.9]}
26... Nxe4 {[%clk 0:02:12]} 0-1

[Event "*** Titled Tuesday Blitz"]
[Site "Chess.com"]
[Date "2021.04.27"]
[Round "1"]
[White "Goryachkina"]
[Black "Harald_Schmidt"]
[Result "1-0"]
[WhiteElo "2658"]
[BlackElo "2324"]
[TimeControl "180+1"]
[EndTime "10:04:33 PDT"]
[Termination "Goryachkina won by resignation"]

1. e4 {[%clk 0:03:00]} 1... e5 {[%clk 0:02:57.4]} 2. Nf3 {[%clk 0:02:59.7]} 2...
Nc6 {[%clk 0:02:57.3]} 3. Nc3 {[%clk 0:03:00]} 3... Nf6 {[%clk 0:02:50.5]} 4. h3
{[%clk 0:02:59.9]} 4... Bb4 {[%clk 0:02:46.5]} 5. Nd5 {[%clk 0:02:59.4]} 5...
Bc5 {[%clk 0:02:43.7]} 6. c3 {[%clk 0:02:53.6]} 6... Nxd5 {[%clk 0:02:36.6]} 7.
exd5 {[%clk 0:02:53.2]} 7... e4 {[%clk 0:02:36.5]} 8. dxc6 {[%clk 0:02:23.6]}
8... exf3 {[%clk 0:02:36]} 9. Qxf3 {[%clk 0:02:16.2]} 9... dxc6 {[%clk
0:02:33.8]} 10. Bc4 {[%clk 0:01:57.6]} 10... Qe7+ {[%clk 0:02:30.7]} 11. Kd1
{[%clk 0:01:57.1]} 11... O-O {[%clk 0:02:25.8]} 12. Re1 {[%clk 0:01:56.3]} 12...
Qd7 {[%clk 0:02:20.6]} 13. d4 {[%clk 0:01:32.4]} 13... Bd6 {[%clk 0:02:17.7]}
14. Kc2 {[%clk 0:01:18.7]} 14... b5 {[%clk 0:02:12.8]} 15. Bd3 {[%clk
0:01:17.9]} 15... b4 {[%clk 0:02:09.2]} 16. c4 {[%clk 0:01:11.7]} 16... Rb8
{[%clk 0:02:06.5]} 17. c5 {[%clk 0:01:08]} 17... Be7 {[%clk 0:02:05.7]} 18. Qe4
{[%clk 0:01:08.2]} 18... g6 {[%clk 0:01:24.9]} 19. Qxe7 {[%clk 0:01:07.3]} 19...
Qxd4 {[%clk 0:01:24.8]} 20. Qxf8+ {[%clk 0:01:02.8]} 1-0

[Event "*** Titled Tuesday Blitz"]
[Site "Chess.com"]
[Date "2021.04.27"]
[Round "1"]
[White "poppy73"]
[Black "Ind1anStar"]
[Result "0-1"]
[WhiteElo "2168"]
[BlackElo "2523"]
[TimeControl "180+1"]
[EndTime "10:04:38 PDT"]
[Termination "Ind1anStar won by resignation"]

1. e4 {[%clk 0:03:00.3]} 1... e6 {[%clk 0:02:59.8]} 2. d4 {[%clk 0:02:59.2]}
2... d5 {[%clk 0:03:00]} 3. Nc3 {[%clk 0:02:57.3]} 3... Nf6 {[%clk 0:02:59.2]}
4. Bg5 {[%clk 0:02:56.8]} 4... Be7 {[%clk 0:02:59.1]} 5. e5 {[%clk 0:02:56.4]}
5... Nfd7 {[%clk 0:02:59]} 6. Bxe7 {[%clk 0:02:56.7]} 6... Qxe7 {[%clk
0:02:59.4]} 7. f4 {[%clk 0:02:53.2]} 7... a6 {[%clk 0:02:54.8]} 8. Nf3 {[%clk
0:02:52.3]} 8... c5 {[%clk 0:02:54.9]} 9. dxc5 {[%clk 0:02:52.1]} 9... Nxc5
{[%clk 0:02:54.7]} 10. Bd3 {[%clk 0:02:49.6]} 10... Nc6 {[%clk 0:02:54.2]} 11.
O-O {[%clk 0:02:45.6]} 11... Bd7 {[%clk 0:02:47.2]} 12. Ne2 {[%clk 0:02:39.4]}
12... Nxd3 {[%clk 0:02:40.2]} 13. cxd3 {[%clk 0:02:32.8]} 13... O-O {[%clk
0:02:40]} 14. d4 {[%clk 0:02:21]} 14... Rac8 {[%clk 0:02:39.1]} 15. Rc1 {[%clk
0:02:12.3]} 15... f5 {[%clk 0:02:38.4]} 16. exf6 {[%clk 0:02:01.6]} 16... gxf6
{[%clk 0:02:16.3]} 17. Qd2 {[%clk 0:01:54.7]} 17... Kh8 {[%clk 0:02:16]} 18. Kh1
{[%clk 0:01:52.8]} 18... Rg8 {[%clk 0:02:15]} 19. f5 {[%clk 0:01:49.4]} 19... e5
{[%clk 0:02:00.6]} 20. dxe5 {[%clk 0:01:48.7]} 20... Nxe5 {[%clk 0:02:01]} 21.
Rxc8 {[%clk 0:01:34.1]} 21... Bxc8 {[%clk 0:01:51.5]} 22. Qxd5 {[%clk
0:01:17.3]} 22... Ng4 {[%clk 0:01:51.3]} 23. Ned4 {[%clk 0:00:54.1]} 23... Ne3
{[%clk 0:01:47.9]} 24. Re1 {[%clk 0:00:54]} 24... Nxd5 {[%clk 0:01:47.4]} 0-1

[Event "*** Titled Tuesday Blitz"]
[Site "Chess.com"]
[Date "2021.04.27"]
[Round "1"]
[White "tdf98pantani"]
[Black "ferch1ni"]
[Result "1-0"]
[WhiteElo "2705"]
[BlackElo "2359"]
[TimeControl "180+1"]
[EndTime "10:04:39 PDT"]
[Termination "tdf98pantani won on time"]

1. e4 {[%clk 0:03:00.9]} 1... c5 {[%clk 0:02:24.9]} 2. Nf3 {[%clk 0:02:57.7]}
2... Nc6 {[%clk 0:02:22.5]} 3. Bc4 {[%clk 0:02:57.3]} 3... e6 {[%clk 0:02:18]}
4. Bb5 {[%clk 0:02:58.2]} 4... Qc7 {[%clk 0:02:17.1]} 5. O-O {[%clk 0:02:56.7]}
5... d6 {[%clk 0:02:15.8]} 6. d4 {[%clk 0:02:55.5]} 6... cxd4 {[%clk 0:02:15.1]}
7. Nxd4 {[%clk 0:02:55.6]} 7... Nf6 {[%clk 0:02:15.4]} 8. Re1 {[%clk 0:02:55]}
8... Be7 {[%clk 0:02:09.9]} 9. c4 {[%clk 0:02:53.6]} 9... O-O {[%clk 0:02:09.3]}
10. Bxc6 {[%clk 0:02:53.7]} 10... bxc6 {[%clk 0:02:09.5]} 11. Nc3 {[%clk
0:02:54.3]} 11... e5 {[%clk 0:02:09.5]} 12. Nc2 {[%clk 0:02:52.3]} 12... a5
{[%clk 0:02:09.1]} 13. Bg5 {[%clk 0:02:51.4]} 13... a4 {[%clk 0:02:02.1]} 14.
Ne3 {[%clk 0:02:51]} 14... a3 {[%clk 0:02:01.3]} 15. b3 {[%clk 0:02:50.8]} 15...
h6 {[%clk 0:02:00.1]} 16. Bh4 {[%clk 0:02:34.6]} 16... Be6 {[%clk 0:01:55.1]}
17. Qf3 {[%clk 0:02:31.1]} 17... g5 {[%clk 0:01:34.1]} 18. Bg3 {[%clk
0:02:30.7]} 18... g4 {[%clk 0:01:34.2]} 19. Qe2 {[%clk 0:02:26.7]} 19... h5
{[%clk 0:01:33.9]} 20. Rad1 {[%clk 0:02:22.7]} 20... Rad8 {[%clk 0:01:32.4]} 21.
Qc2 {[%clk 0:02:15.3]} 1-0